[Event "Titled Tuesday Blitz May 16 Early 2023"]
[White "Sakun, Volodymyr"]
[Black "Hafiz, Arif Abdul"]
[WhiteFideId "14114062"]
[BlackFideId "7104227"]
[WhiteElo "2318"]
[BlackElo "2198"]
[Result "0-1"]
[Round "04"]
[TimeControl "180+2"]
[Date "2023.05.16"]
[WhiteClock "0:00:04"]
[BlackClock "0:00:05"]

1. d4 {[%clk 0:03:00]}  Nf6 {[%clk 0:02:59]} 2. c4 {[%clk 0:02:59]}  g6 {[%clk 0:03:00]} 3. Nc3 {[%clk 0:02:57]}  d5 {[%clk 0:03:00]} 4. Bg5 {[%clk 0:02:57]}  Ne4 {[%clk 0:02:58]} 5. Bf4 {[%clk 0:02:51]}  Nxc3 {[%clk 0:02:55]} 6. bxc3 {[%clk 0:02:52]}  Bg7 {[%clk 0:02:54]} 7. e3 {[%clk 0:02:49]}  O-O {[%clk 0:02:52]} 8. Nf3 {[%clk 0:02:49]}  c5 {[%clk 0:02:49]} 9. Rc1 {[%clk 0:02:46]}  Nc6 {[%clk 0:02:40]} 10. cxd5 {[%clk 0:02:37]}  Qxd5 {[%clk 0:02:38]} 11. c4 {[%clk 0:02:38]}  Qd8 {[%clk 0:02:37]} 12. d5 {[%clk 0:02:36]}  Qa5+ {[%clk 0:02:36]} 13. Qd2 {[%clk 0:02:36]}  Nb4 {[%clk 0:02:37]} 14. Be5 {[%clk 0:02:23]}  Qxa2 {[%clk 0:02:31]} 15. Qc3 {[%clk 0:02:13]}  Bxe5 {[%clk 0:02:22]} 16. Nxe5 {[%clk 0:02:14]}  Bf5 {[%clk 0:01:59]} 17. g4 {[%clk 0:02:11]}  f6 {[%clk 0:01:08]} 18. gxf5 {[%clk 0:02:01]}  fxe5 {[%clk 0:01:09]} 19. e4 {[%clk 0:01:59]}  Rf6 {[%clk 0:00:39]} 20. Qxe5 {[%clk 0:01:41]}  Nc2+ {[%clk 0:00:33]} 21. Rxc2 {[%clk 0:00:51]}  Qxc2 {[%clk 0:00:34]} 22. Be2 {[%clk 0:00:37]}  Qb1+ {[%clk 0:00:28]} 23. Bd1 {[%clk 0:00:26]}  Qb4+ {[%clk 0:00:29]} 24. Kf1 {[%clk 0:00:23]}  Qxc4+ {[%clk 0:00:28]} 25. Kg2 {[%clk 0:00:23]}  gxf5 {[%clk 0:00:22]} 26. Re1 {[%clk 0:00:22]}  Rf7 {[%clk 0:00:12]} 27. exf5 {[%clk 0:00:20]}  Qd4 {[%clk 0:00:12]} 28. Qe6 {[%clk 0:00:17]}  Qf6 {[%clk 0:00:10]} 29. Bc2 {[%clk 0:00:10]}  Kh8 {[%clk 0:00:06]} 30. Kh1 {[%clk 0:00:08]}  Rg8 {[%clk 0:00:06]} 31. Qe4 {[%clk 0:00:05]}  Rfg7 {[%clk 0:00:05]} 32. Qf3 {[%clk 0:00:04]}  b5 {[%clk 0:00:05]} 33. h3 {[%clk 0:00:04]}  b4 {[%clk 0:00:05]} 34. Re6 {[%clk 0:00:03]}  Qa1+ {[%clk 0:00:05]} 35. Kh2 {[%clk 0:00:04]}  Qg1# {[%clk 0:00:05]} 0-1


[Site "https://www.chess.com"]

[Event "Titled Tuesday Blitz May 16 Early 2023"]
[White "Sviridov, Valery"]
[Black "Ismagilov, Damir"]
[WhiteFideId "4120680"]
[BlackFideId "34199982"]
[WhiteElo "2457"]
[BlackElo "2143"]
[Result "1-0"]
[Round "04"]
[TimeControl "180+2"]
[Date "2023.05.16"]
[WhiteClock "0:01:42"]
[BlackClock "0:00:11"]

1. d4 {[%clk 0:03:00]}  Nf6 {[%clk 0:02:58]} 2. Nf3 {[%clk 0:03:00]}  b6 {[%clk 0:02:58]} 3. e3 {[%clk 0:02:59]}  Bb7 {[%clk 0:02:58]} 4. Nbd2 {[%clk 0:03:00]}  g6 {[%clk 0:02:58]} 5. Bd3 {[%clk 0:03:00]}  Bg7 {[%clk 0:02:58]} 6. e4 {[%clk 0:03:00]}  d6 {[%clk 0:02:58]} 7. O-O {[%clk 0:03:00]}  O-O {[%clk 0:02:58]} 8. Re1 {[%clk 0:02:59]}  e6 {[%clk 0:02:43]} 9. Qe2 {[%clk 0:02:40]}  c5 {[%clk 0:02:33]} 10. e5 {[%clk 0:02:38]}  Nd5 {[%clk 0:02:16]} 11. Ne4 {[%clk 0:02:38]}  dxe5 {[%clk 0:02:05]} 12. dxe5 {[%clk 0:02:37]}  Nb4 {[%clk 0:02:01]} 13. Bg5 {[%clk 0:02:33]}  Qc7 {[%clk 0:01:58]} 14. Nf6+ {[%clk 0:02:29]}  Kh8 {[%clk 0:01:56]} 15. Be4 {[%clk 0:02:30]}  Nd5 {[%clk 0:01:43]} 16. c4 {[%clk 0:02:29]}  Ne7 {[%clk 0:01:41]} 17. Rad1 {[%clk 0:02:28]}  Nf5 {[%clk 0:01:33]} 18. g4 {[%clk 0:02:14]}  Nd4 {[%clk 0:01:23]} 19. Nxd4 {[%clk 0:02:15]}  cxd4 {[%clk 0:01:24]} 20. Rxd4 {[%clk 0:02:14]}  h6 {[%clk 0:00:58]} 21. Bxb7 {[%clk 0:02:06]}  Qxb7 {[%clk 0:00:57]} 22. Bf4 {[%clk 0:02:05]}  Nc6 {[%clk 0:00:47]} 23. Rd7 {[%clk 0:02:05]}  Qa6 {[%clk 0:00:46]} 24. b3 {[%clk 0:02:05]}  Rad8 {[%clk 0:00:44]} 25. Red1 {[%clk 0:02:05]}  Qc8 {[%clk 0:00:44]} 26. R7d6 {[%clk 0:01:55]}  Rxd6 {[%clk 0:00:37]} 27. Rxd6 {[%clk 0:01:56]}  Rd8 {[%clk 0:00:34]} 28. Qd2 {[%clk 0:01:54]}  Rxd6 {[%clk 0:00:29]} 29. Qxd6 {[%clk 0:01:55]}  Qd8 {[%clk 0:00:26]} 30. Qxd8+ {[%clk 0:01:53]}  Nxd8 {[%clk 0:00:26]} 31. Nd7 {[%clk 0:01:41]}  g5 {[%clk 0:00:26]} 32. Bd2 {[%clk 0:01:36]}  Nc6 {[%clk 0:00:26]} 33. Bc3 {[%clk 0:01:36]}  Kh7 {[%clk 0:00:26]} 34. Kg2 {[%clk 0:01:35]}  Kg6 {[%clk 0:00:27]} 35. Kf3 {[%clk 0:01:36]}  h5 {[%clk 0:00:27]} 36. h3 {[%clk 0:01:37]}  h4 {[%clk 0:00:27]} 37. Ke4 {[%clk 0:01:37]}  Ne7 {[%clk 0:00:15]} 38. b4 {[%clk 0:01:35]}  Nc6 {[%clk 0:00:14]} 39. b5 {[%clk 0:01:35]}  Nd8 {[%clk 0:00:14]} 40. a4 {[%clk 0:01:34]}  Nb7 {[%clk 0:00:14]} 41. Bb4 {[%clk 0:01:34]}  f6 {[%clk 0:00:14]} 42. exf6 {[%clk 0:01:32]}  Bxf6 {[%clk 0:00:14]} 43. c5 {[%clk 0:01:33]}  bxc5 {[%clk 0:00:14]} 44. Nxc5 {[%clk 0:01:34]}  Nd6+ {[%clk 0:00:14]} 45. Kd3 {[%clk 0:01:35]}  e5 {[%clk 0:00:11]} 46. Ne4 {[%clk 0:01:34]}  Nb7 {[%clk 0:00:09]} 47. Bc5 {[%clk 0:01:33]}  Nxc5+ {[%clk 0:00:08]} 48. Nxc5 {[%clk 0:01:34]}  Kf7 {[%clk 0:00:09]} 49. Ke4 {[%clk 0:01:35]}  Ke7 {[%clk 0:00:09]} 50. Kd5 {[%clk 0:01:33]}  Bh8 {[%clk 0:00:06]} 51. f3 {[%clk 0:01:33]}  Kd8 {[%clk 0:00:04]} 52. Nd3 {[%clk 0:01:33]}  Kc7 {[%clk 0:00:03]} 53. Nxe5 {[%clk 0:01:34]}  Kb6 {[%clk 0:00:04]} 54. Nc4+ {[%clk 0:01:34]}  Kb7 {[%clk 0:00:04]} 55. a5 {[%clk 0:01:34]}  Bc3 {[%clk 0:00:04]} 56. a6+ {[%clk 0:01:34]}  Kc7 {[%clk 0:00:04]} 57. Kc5 {[%clk 0:01:34]}  Bf6 {[%clk 0:00:03]} 58. b6+ {[%clk 0:01:33]}  axb6+ {[%clk 0:00:03]} 59. Nxb6 {[%clk 0:01:34]}  Kb8 {[%clk 0:00:03]} 60. Nd7+ {[%clk 0:01:34]}  Ka7 {[%clk 0:00:04]} 61. Nxf6 {[%clk 0:01:35]}  Kxa6 {[%clk 0:00:04]} 62. Ne4 {[%clk 0:01:36]}  Kb7 {[%clk 0:00:05]} 63. Nxg5 {[%clk 0:01:36]}  Kc7 {[%clk 0:00:06]} 64. f4 {[%clk 0:01:37]}  Kd7 {[%clk 0:00:07]} 65. f5 {[%clk 0:01:38]}  Ke8 {[%clk 0:00:08]} 66. Kd6 {[%clk 0:01:38]}  Kf8 {[%clk 0:00:08]} 67. Ke6 {[%clk 0:01:39]}  Kg7 {[%clk 0:00:09]} 68. f6+ {[%clk 0:01:40]}  Kf8 {[%clk 0:00:10]} 69. f7 {[%clk 0:01:40]}  Kg7 {[%clk 0:00:11]} 70. Ke7 {[%clk 0:01:41]}  Kg6 {[%clk 0:00:11]} 71. f8=Q {[%clk 0:01:41]}  Kxg5 {[%clk 0:00:11]} 72. Qf6# {[%clk 0:01:42]} 1-0


[Site "https://www.chess.com"]

[Event "Titled Tuesday Blitz May 16 Early 2023"]
[White "Spata, German"]
[Black "Aydincelebi, Kagan"]
[WhiteFideId "113026"]
[BlackFideId "6361102"]
[WhiteElo "2260"]
[BlackElo "2180"]
[Result "1-0"]
[Round "04"]
[TimeControl "180+2"]
[Date "2023.05.16"]
[WhiteClock "0:00:05"]
[BlackClock "0:00:19"]

1. Nf3 {[%clk 0:02:58]}  c5 {[%clk 0:02:58]} 2. e3 {[%clk 0:02:59]}  g6 {[%clk 0:02:58]} 3. d4 {[%clk 0:02:59]}  Bg7 {[%clk 0:02:59]} 4. Be2 {[%clk 0:02:59]}  Nf6 {[%clk 0:02:59]} 5. O-O {[%clk 0:03:00]}  O-O {[%clk 0:03:00]} 6. b3 {[%clk 0:03:00]}  b6 {[%clk 0:02:58]} 7. Bb2 {[%clk 0:03:00]}  Bb7 {[%clk 0:02:58]} 8. c4 {[%clk 0:03:00]}  cxd4 {[%clk 0:02:58]} 9. Nxd4 {[%clk 0:03:00]}  Nc6 {[%clk 0:02:58]} 10. Nc3 {[%clk 0:02:59]}  Rc8 {[%clk 0:02:57]} 11. Rc1 {[%clk 0:02:59]}  Nxd4 {[%clk 0:02:58]} 12. Qxd4 {[%clk 0:02:59]}  d5 {[%clk 0:02:57]} 13. Nxd5 {[%clk 0:02:57]}  Nh5 {[%clk 0:02:18]} 14. Qd2 {[%clk 0:02:54]}  Bxb2 {[%clk 0:02:00]} 15. Qxb2 {[%clk 0:02:55]}  Bxd5 {[%clk 0:02:00]} 16. Rcd1 {[%clk 0:02:23]}  Nf6 {[%clk 0:01:52]} 17. cxd5 {[%clk 0:02:21]}  Rc5 {[%clk 0:01:52]} 18. Bf3 {[%clk 0:02:13]}  Qc7 {[%clk 0:01:45]} 19. Rd2 {[%clk 0:02:06]}  Rc8 {[%clk 0:01:45]} 20. d6 {[%clk 0:01:57]}  Qd8 {[%clk 0:01:44]} 21. dxe7 {[%clk 0:01:45]}  Qxe7 {[%clk 0:01:44]} 22. Rfd1 {[%clk 0:01:44]}  a5 {[%clk 0:01:32]} 23. h3 {[%clk 0:01:44]}  b5 {[%clk 0:01:31]} 24. Rd6 {[%clk 0:01:38]}  Kg7 {[%clk 0:01:25]} 25. Rd7 {[%clk 0:01:23]}  Qe6 {[%clk 0:01:17]} 26. R7d6 {[%clk 0:01:21]}  Qe7 {[%clk 0:01:15]} 27. Rd7 {[%clk 0:01:22]}  Qe6 {[%clk 0:01:15]} 28. Bg4 {[%clk 0:01:19]}  Qe5 {[%clk 0:01:04]} 29. Qxe5 {[%clk 0:01:09]}  Rxe5 {[%clk 0:01:05]} 30. Rxf7+ {[%clk 0:00:56]}  Kxf7 {[%clk 0:01:06]} 31. Bxc8 {[%clk 0:00:56]}  Rc5 {[%clk 0:01:07]} 32. Ba6 {[%clk 0:00:45]}  Nd5 {[%clk 0:01:01]} 33. a4 {[%clk 0:00:37]}  Nc3 {[%clk 0:00:55]} 34. Rd7+ {[%clk 0:00:34]}  Ke6 {[%clk 0:00:55]} 35. Rxh7 {[%clk 0:00:26]}  bxa4 {[%clk 0:00:55]} 36. bxa4 {[%clk 0:00:24]}  Nxa4 {[%clk 0:00:56]} 37. Bd3 {[%clk 0:00:21]}  Kf6 {[%clk 0:00:41]} 38. Ra7 {[%clk 0:00:20]}  Nb2 {[%clk 0:00:40]} 39. Ra6+ {[%clk 0:00:20]}  Ke5 {[%clk 0:00:40]} 40. f4+ {[%clk 0:00:17]}  Kd5 {[%clk 0:00:39]} 41. Bxg6 {[%clk 0:00:17]}  a4 {[%clk 0:00:38]} 42. f5 {[%clk 0:00:16]}  Ke5 {[%clk 0:00:27]} 43. f6 {[%clk 0:00:16]}  Rc1+ {[%clk 0:00:23]} 44. Kh2 {[%clk 0:00:16]}  Rc8 {[%clk 0:00:19]} 45. f7 {[%clk 0:00:16]}  Rf8 {[%clk 0:00:20]} 46. h4 {[%clk 0:00:14]}  Nc4 {[%clk 0:00:20]} 47. h5 {[%clk 0:00:12]}  Nd6 {[%clk 0:00:20]} 48. h6 {[%clk 0:00:09]}  Nxf7 {[%clk 0:00:20]} 49. Bxf7 {[%clk 0:00:09]}  Rxf7 {[%clk 0:00:21]} 50. Rxa4 {[%clk 0:00:09]}  Rh7 {[%clk 0:00:21]} 51. Ra6 {[%clk 0:00:09]}  Ke4 {[%clk 0:00:21]} 52. Kg3 {[%clk 0:00:09]}  Kxe3 {[%clk 0:00:22]} 53. Kg4 {[%clk 0:00:09]}  Ke4 {[%clk 0:00:21]} 54. Kg5 {[%clk 0:00:09]}  Rh8 {[%clk 0:00:22]} 55. g4 {[%clk 0:00:07]}  Ke5 {[%clk 0:00:22]} 56. Kh5 {[%clk 0:00:07]}  Kf4 {[%clk 0:00:20]} 57. g5 {[%clk 0:00:06]}  Rb8 {[%clk 0:00:21]} 58. Rf6+ {[%clk 0:00:06]}  Ke5 {[%clk 0:00:21]} 59. h7 {[%clk 0:00:06]}  Rb1 {[%clk 0:00:19]} 60. Kg6 {[%clk 0:00:06]}  Rh1 {[%clk 0:00:19]} 61. Kg7 {[%clk 0:00:05]} 1-0


[Site "https://www.chess.com"]

[Event "Titled Tuesday Blitz May 16 Early 2023"]
[White "Cherniaiev, Tykhon"]
[Black "egorchess95"]
[WhiteFideId "14182360"]
[WhiteElo "2450"]
[BlackElo "2564"]
[Result "0-1"]
[Round "04"]
[TimeControl "180+2"]
[Date "2023.05.16"]
[WhiteClock "0:00:08"]
[BlackClock "0:00:35"]

1. Nf3 {[%clk 0:03:00]}  d5 {[%clk 0:02:59]} 2. d4 {[%clk 0:03:01]}  Nf6 {[%clk 0:02:59]} 3. c4 {[%clk 0:03:01]}  e6 {[%clk 0:02:57]} 4. Nc3 {[%clk 0:03:00]}  c6 {[%clk 0:02:57]} 5. e3 {[%clk 0:03:00]}  Nbd7 {[%clk 0:02:56]} 6. cxd5 {[%clk 0:03:00]}  exd5 {[%clk 0:02:56]} 7. Bd3 {[%clk 0:03:00]}  Bd6 {[%clk 0:02:55]} 8. O-O {[%clk 0:03:01]}  O-O {[%clk 0:02:55]} 9. h3 {[%clk 0:03:00]}  Re8 {[%clk 0:02:53]} 10. Qc2 {[%clk 0:02:59]}  Nf8 {[%clk 0:02:53]} 11. e4 {[%clk 0:02:53]}  dxe4 {[%clk 0:02:52]} 12. Nxe4 {[%clk 0:02:54]}  Nxe4 {[%clk 0:02:53]} 13. Bxe4 {[%clk 0:02:55]}  Be6 {[%clk 0:02:40]} 14. Bg5 {[%clk 0:02:53]}  Be7 {[%clk 0:02:39]} 15. Bxe7 {[%clk 0:02:52]}  Rxe7 {[%clk 0:02:40]} 16. Rfe1 {[%clk 0:02:52]}  Ng6 {[%clk 0:02:31]} 17. a3 {[%clk 0:02:50]}  Bd5 {[%clk 0:02:29]} 18. Bxd5 {[%clk 0:02:48]}  Rxe1+ {[%clk 0:02:29]} 19. Rxe1 {[%clk 0:02:49]}  Qxd5 {[%clk 0:02:30]} 20. Qd2 {[%clk 0:02:08]}  Rd8 {[%clk 0:02:22]} 21. Qb4 {[%clk 0:01:51]}  Qd7 {[%clk 0:02:19]} 22. Qc5 {[%clk 0:01:03]}  a6 {[%clk 0:01:51]} 23. Qb6 {[%clk 0:00:37]}  h6 {[%clk 0:01:45]} 24. Qc5 {[%clk 0:00:34]}  Qd5 {[%clk 0:01:41]} 25. Qc2 {[%clk 0:00:28]}  Nf4 {[%clk 0:01:38]} 26. Kh2 {[%clk 0:00:27]}  Ne6 {[%clk 0:01:32]} 27. Qd3 {[%clk 0:00:14]}  c5 {[%clk 0:01:20]} 28. Re5 {[%clk 0:00:13]}  Qd6 {[%clk 0:01:19]} 29. Kh1 {[%clk 0:00:05]}  Nxd4 {[%clk 0:01:14]} 30. Re3 {[%clk 0:00:03]}  Nxf3 {[%clk 0:01:01]} 31. Qxd6 {[%clk 0:00:03]}  Rxd6 {[%clk 0:01:02]} 32. Rxf3 {[%clk 0:00:04]}  Rd2 {[%clk 0:00:53]} 33. b3 {[%clk 0:00:03]}  Kf8 {[%clk 0:00:49]} 34. Rc3 {[%clk 0:00:03]}  b6 {[%clk 0:00:46]} 35. b4 {[%clk 0:00:02]}  cxb4 {[%clk 0:00:43]} 36. axb4 {[%clk 0:00:03]}  Rxf2 {[%clk 0:00:43]} 37. Rc6 {[%clk 0:00:04]}  Rf6 {[%clk 0:00:43]} 38. Rc8+ {[%clk 0:00:04]}  Ke7 {[%clk 0:00:43]} 39. Rc7+ {[%clk 0:00:05]}  Kd6 {[%clk 0:00:36]} 40. Ra7 {[%clk 0:00:06]}  Kc6 {[%clk 0:00:36]} 41. Rxa6 {[%clk 0:00:06]}  Kb5 {[%clk 0:00:36]} 42. Ra8 {[%clk 0:00:06]}  Kxb4 {[%clk 0:00:37]} 43. Rg8 {[%clk 0:00:07]}  g6 {[%clk 0:00:36]} 44. g4 {[%clk 0:00:07]}  b5 {[%clk 0:00:36]} 45. Rh8 {[%clk 0:00:07]}  g5 {[%clk 0:00:37]} 46. Kg2 {[%clk 0:00:08]}  Kb3 {[%clk 0:00:36]} 47. Kg3 {[%clk 0:00:07]}  b4 {[%clk 0:00:37]} 48. h4 {[%clk 0:00:07]}  Kb2 {[%clk 0:00:37]} 49. hxg5 {[%clk 0:00:07]}  hxg5 {[%clk 0:00:38]} 50. Rh5 {[%clk 0:00:08]}  b3 {[%clk 0:00:38]} 51. Rxg5 {[%clk 0:00:08]}  Kb1 {[%clk 0:00:39]} 52. Rb5 {[%clk 0:00:08]}  b2 {[%clk 0:00:39]} 53. Rc5 {[%clk 0:00:07]}  Ra6 {[%clk 0:00:40]} 54. Rf5 {[%clk 0:00:07]}  Ka1 {[%clk 0:00:40]} 55. Rxf7 {[%clk 0:00:04]}  b1=Q {[%clk 0:00:40]} 56. Rf5 {[%clk 0:00:04]}  Qe4 {[%clk 0:00:35]} 57. Rf1+ {[%clk 0:00:04]}  Kb2 {[%clk 0:00:35]} 58. Rf2+ {[%clk 0:00:05]}  Kc3 {[%clk 0:00:36]} 59. Rf3+ {[%clk 0:00:05]}  Kd4 {[%clk 0:00:34]} 60. Rf4 {[%clk 0:00:06]}  Qxf4+ {[%clk 0:00:35]} 61. Kxf4 {[%clk 0:00:07]}  Rf6+ {[%clk 0:00:35]} 62. Kg5 {[%clk 0:00:07]}  Ke5 {[%clk 0:00:35]} 63. Kh5 {[%clk 0:00:08]}  Kf4 {[%clk 0:00:34]} 64. g5 {[%clk 0:00:08]}  Rf5 {[%clk 0:00:35]} 65. Kh6 {[%clk 0:00:08]}  Rxg5 {[%clk 0:00:35]} 66. Kh7 {[%clk 0:00:09]}  Kg4 {[%clk 0:00:36]} 67. Kh6 {[%clk 0:00:09]}  Kf5 {[%clk 0:00:36]} 68. Kh7 {[%clk 0:00:09]}  Kf6 {[%clk 0:00:37]} 69. Kh6 {[%clk 0:00:10]}  Re5 {[%clk 0:00:34]} 70. Kh7 {[%clk 0:00:10]}  Kf7 {[%clk 0:00:34]} 71. Kh6 {[%clk 0:00:10]}  Rd5 {[%clk 0:00:35]} 72. Kh7 {[%clk 0:00:08]}  Rh5# {[%clk 0:00:35]} 0-1


[Site "https://www.chess.com"]

[Event "Titled Tuesday Blitz May 16 Early 2023"]
[White "Karthik Rajaa"]
[Black "Jovic, Stanoje"]
[WhiteFideId "25035215"]
[BlackFideId "905020"]
[WhiteElo "2215"]
[BlackElo "2236"]
[Result "1-0"]
[Round "04"]
[TimeControl "180+2"]
[Date "2023.05.16"]
[WhiteClock "0:00:08"]
[BlackClock "0:00:25"]

1. Nf3 {[%clk 0:03:00]}  Nf6 {[%clk 0:02:59]} 2. c4 {[%clk 0:03:00]}  c5 {[%clk 0:02:59]} 3. Nc3 {[%clk 0:03:00]}  Nc6 {[%clk 0:02:59]} 4. e3 {[%clk 0:03:01]}  d5 {[%clk 0:02:51]} 5. cxd5 {[%clk 0:02:59]}  Nxd5 {[%clk 0:02:51]} 6. Bb5 {[%clk 0:02:59]}  Nxc3 {[%clk 0:02:48]} 7. bxc3 {[%clk 0:02:59]}  Bd7 {[%clk 0:02:46]} 8. O-O {[%clk 0:02:57]}  g6 {[%clk 0:02:46]} 9. d4 {[%clk 0:02:57]}  Bg7 {[%clk 0:02:40]} 10. a4 {[%clk 0:02:39]}  a6 {[%clk 0:02:33]} 11. Be2 {[%clk 0:02:38]}  cxd4 {[%clk 0:02:32]} 12. cxd4 {[%clk 0:02:37]}  O-O {[%clk 0:02:31]} 13. Ba3 {[%clk 0:02:37]}  Re8 {[%clk 0:02:29]} 14. Rb1 {[%clk 0:02:37]}  b5 {[%clk 0:02:21]} 15. axb5 {[%clk 0:02:29]}  axb5 {[%clk 0:02:21]} 16. Bc5 {[%clk 0:02:30]}  b4 {[%clk 0:01:59]} 17. d5 {[%clk 0:02:30]}  Ne5 {[%clk 0:01:51]} 18. Bxb4 {[%clk 0:02:15]}  Bf5 {[%clk 0:01:45]} 19. Rc1 {[%clk 0:02:09]}  Be4 {[%clk 0:01:42]} 20. Nxe5 {[%clk 0:01:55]}  Bxe5 {[%clk 0:01:42]} 21. Bb5 {[%clk 0:01:55]}  Bxh2+ {[%clk 0:01:36]} 22. Kxh2 {[%clk 0:01:41]}  Qb8+ {[%clk 0:01:33]} 23. Kg1 {[%clk 0:01:31]}  Qxb5 {[%clk 0:01:33]} 24. Bc3 {[%clk 0:01:02]}  Qxd5 {[%clk 0:01:31]} 25. Qg4 {[%clk 0:00:48]}  Qf5 {[%clk 0:01:21]} 26. Qh4 {[%clk 0:00:42]}  h5 {[%clk 0:01:20]} 27. Bd4 {[%clk 0:00:38]}  e5 {[%clk 0:01:15]} 28. Rc5 {[%clk 0:00:29]}  Ra4 {[%clk 0:01:04]} 29. Qg3 {[%clk 0:00:21]}  f6 {[%clk 0:00:55]} 30. f3 {[%clk 0:00:20]}  Bd3 {[%clk 0:00:54]} 31. Rd1 {[%clk 0:00:14]}  Rb8 {[%clk 0:00:39]} 32. e4 {[%clk 0:00:11]}  Qg5 {[%clk 0:00:35]} 33. Qxg5 {[%clk 0:00:11]}  fxg5 {[%clk 0:00:35]} 34. Bxe5 {[%clk 0:00:11]}  Rb3 {[%clk 0:00:34]} 35. Rc8+ {[%clk 0:00:10]}  Kf7 {[%clk 0:00:33]} 36. Rc7+ {[%clk 0:00:10]}  Ke6 {[%clk 0:00:33]} 37. Bg3 {[%clk 0:00:08]}  g4 {[%clk 0:00:32]} 38. Rc6+ {[%clk 0:00:08]}  Kf7 {[%clk 0:00:32]} 39. Rd6 {[%clk 0:00:08]}  Raa3 {[%clk 0:00:29]} 40. Bf2 {[%clk 0:00:07]}  gxf3 {[%clk 0:00:27]} 41. gxf3 {[%clk 0:00:08]}  Be2 {[%clk 0:00:27]} 42. Rd7+ {[%clk 0:00:08]}  Ke6 {[%clk 0:00:26]} 43. R1d6+ {[%clk 0:00:08]}  Ke5 {[%clk 0:00:25]} 44. Bg3# {[%clk 0:00:08]} 1-0


[Site "https://www.chess.com"]

[Event "Titled Tuesday Blitz May 16 Early 2023"]
[White "Baghdasaryan, Vahe"]
[Black "Moussard, Jules"]
[WhiteFideId "13303139"]
[BlackFideId "642908"]
[WhiteElo "2216"]
[BlackElo "2610"]
[Result "0-1"]
[Round "04"]
[TimeControl "180+2"]
[Date "2023.05.16"]
[WhiteClock "0:00:00"]
[BlackClock "0:00:03"]

1. e4 {[%clk 0:03:00]}  c5 {[%clk 0:02:58]} 2. Nf3 {[%clk 0:03:00]}  e6 {[%clk 0:02:59]} 3. d4 {[%clk 0:02:58]}  cxd4 {[%clk 0:03:00]} 4. Nxd4 {[%clk 0:02:59]}  Nc6 {[%clk 0:03:01]} 5. Nc3 {[%clk 0:02:58]}  Qc7 {[%clk 0:03:01]} 6. Be2 {[%clk 0:02:51]}  Nf6 {[%clk 0:03:00]} 7. O-O {[%clk 0:02:51]}  Be7 {[%clk 0:02:59]} 8. Be3 {[%clk 0:02:48]}  O-O {[%clk 0:02:58]} 9. f4 {[%clk 0:02:47]}  d6 {[%clk 0:02:58]} 10. Qe1 {[%clk 0:02:44]}  Bd7 {[%clk 0:02:43]} 11. Rd1 {[%clk 0:02:38]}  Nxd4 {[%clk 0:02:38]} 12. Bxd4 {[%clk 0:02:38]}  Bc6 {[%clk 0:02:38]} 13. Qg3 {[%clk 0:02:37]}  a6 {[%clk 0:02:31]} 14. Kh1 {[%clk 0:02:14]}  b5 {[%clk 0:02:30]} 15. a3 {[%clk 0:02:14]}  Rad8 {[%clk 0:02:28]} 16. Bd3 {[%clk 0:02:12]}  Qb7 {[%clk 0:02:14]} 17. Rde1 {[%clk 0:02:00]}  Ne8 {[%clk 0:01:56]} 18. Qh3 {[%clk 0:01:49]}  h6 {[%clk 0:01:49]} 19. Re3 {[%clk 0:01:36]}  Bf6 {[%clk 0:01:38]} 20. Ne2 {[%clk 0:01:01]}  e5 {[%clk 0:01:32]} 21. Bc3 {[%clk 0:01:00]}  Qe7 {[%clk 0:01:00]} 22. Ng3 {[%clk 0:00:57]}  Bd7 {[%clk 0:01:00]} 23. Nf5 {[%clk 0:00:36]}  Bxf5 {[%clk 0:01:00]} 24. exf5 {[%clk 0:00:36]}  Qc7 {[%clk 0:00:59]} 25. fxe5 {[%clk 0:00:31]}  dxe5 {[%clk 0:00:59]} 26. Rfe1 {[%clk 0:00:28]}  Rd5 {[%clk 0:00:47]} 27. Qg4 {[%clk 0:00:28]}  a5 {[%clk 0:00:29]} 28. Qe4 {[%clk 0:00:19]}  Rc5 {[%clk 0:00:29]} 29. Bd2 {[%clk 0:00:18]}  Nd6 {[%clk 0:00:29]} 30. Qg4 {[%clk 0:00:18]}  Kh8 {[%clk 0:00:26]} 31. Rg3 {[%clk 0:00:18]}  e4 {[%clk 0:00:25]} 32. Rh3 {[%clk 0:00:12]}  Kh7 {[%clk 0:00:16]} 33. Bxh6 {[%clk 0:00:08]}  gxh6 {[%clk 0:00:17]} 34. Qf4 {[%clk 0:00:08]}  Nxf5 {[%clk 0:00:08]} 35. Qxc7 {[%clk 0:00:08]}  Rxc7 {[%clk 0:00:09]} 36. Bxe4 {[%clk 0:00:09]}  Rc5 {[%clk 0:00:09]} 37. g4 {[%clk 0:00:08]}  Bxb2 {[%clk 0:00:07]} 38. Bxf5+ {[%clk 0:00:08]}  Kg7 {[%clk 0:00:07]} 39. Rf3 {[%clk 0:00:04]}  Rc3 {[%clk 0:00:04]} 40. Rxc3 {[%clk 0:00:04]}  Bxc3 {[%clk 0:00:05]} 41. Re7 {[%clk 0:00:04]}  Bb2 {[%clk 0:00:03]} 42. Rb7 {[%clk 0:00:04]}  b4 {[%clk 0:00:03]} 43. axb4 {[%clk 0:00:03]}  a4 {[%clk 0:00:04]} 44. Ra7 {[%clk 0:00:04]}  a3 {[%clk 0:00:04]} 45. b5 {[%clk 0:00:04]}  Rb8 {[%clk 0:00:04]} 46. c4 {[%clk 0:00:04]}  Rd8 {[%clk 0:00:03]} 47. Be6 {[%clk 0:00:04]}  Bd4 {[%clk 0:00:02]} 48. Rxf7+ {[%clk 0:00:01]}  Kg6 {[%clk 0:00:03]} 49. Rf2 {[%clk 0:00:02]}  Bxf2 {[%clk 0:00:03]} 50. Bf5+ {[%clk 0:00:00]}  Kg5 {[%clk 0:00:03]} 0-1


[Site "https://www.chess.com"]

[Event "Titled Tuesday Blitz May 16 Early 2023"]
[White "Herrera Ortiz, Miguel"]
[Black "Tang, Andrew"]
[WhiteFideId "5100550"]
[BlackFideId "2059630"]
[WhiteElo "2622"]
[BlackElo "2596"]
[Result "0-1"]
[Round "04"]
[TimeControl "180+2"]
[Date "2023.05.16"]
[WhiteClock "0:00:12"]
[BlackClock "0:00:03"]

1. e4 {[%clk 0:03:00]}  e5 {[%clk 0:02:59]} 2. Nf3 {[%clk 0:03:00]}  Nc6 {[%clk 0:02:59]} 3. Bc4 {[%clk 0:02:59]}  Nf6 {[%clk 0:02:59]} 4. d4 {[%clk 0:02:59]}  exd4 {[%clk 0:03:00]} 5. e5 {[%clk 0:02:59]}  d5 {[%clk 0:03:00]} 6. Bb5 {[%clk 0:02:59]}  Ne4 {[%clk 0:03:00]} 7. Nxd4 {[%clk 0:03:00]}  Bc5 {[%clk 0:03:01]} 8. Be3 {[%clk 0:02:55]}  Bd7 {[%clk 0:02:59]} 9. Bxc6 {[%clk 0:02:46]}  bxc6 {[%clk 0:03:00]} 10. O-O {[%clk 0:02:40]}  Qe7 {[%clk 0:02:59]} 11. f3 {[%clk 0:02:37]}  Nd6 {[%clk 0:02:57]} 12. f4 {[%clk 0:02:29]}  Nc4 {[%clk 0:02:47]} 13. Bc1 {[%clk 0:02:25]}  f6 {[%clk 0:02:12]} 14. exf6 {[%clk 0:02:10]}  Qxf6 {[%clk 0:02:10]} 15. Re1+ {[%clk 0:02:00]}  Kf7 {[%clk 0:02:10]} 16. c3 {[%clk 0:02:00]}  Rae8 {[%clk 0:02:09]} 17. Rf1 {[%clk 0:01:39]}  Re4 {[%clk 0:01:57]} 18. Kh1 {[%clk 0:01:33]}  Bxd4 {[%clk 0:01:14]} 19. cxd4 {[%clk 0:01:33]}  Rxd4 {[%clk 0:01:09]} 20. Qf3 {[%clk 0:01:32]}  Re8 {[%clk 0:01:05]} 21. Nc3 {[%clk 0:01:28]}  Bf5 {[%clk 0:01:05]} 22. Ne2 {[%clk 0:01:16]}  Rd3 {[%clk 0:00:50]} 23. Qf2 {[%clk 0:01:14]}  Nd2 {[%clk 0:00:44]} 24. Re1 {[%clk 0:00:51]}  Qe6 {[%clk 0:00:17]} 25. Qxa7 {[%clk 0:00:36]}  Nc4 {[%clk 0:00:07]} 26. b3 {[%clk 0:00:27]}  Nd6 {[%clk 0:00:03]} 27. Qxc7+ {[%clk 0:00:18]}  Re7 {[%clk 0:00:03]} 28. Qxc6 {[%clk 0:00:19]}  Qxe2 {[%clk 0:00:03]} 29. Ba3 {[%clk 0:00:12]}  Qxe1+ {[%clk 0:00:03]} 0-1


[Site "https://www.chess.com"]